bitfinex/quotes_BTCUSD_20250320
["timestamp","ask_amount","ask_price","bid_price","bid_amount"]
[1742481231358,0.55829503,86391.0,86390.0,0.00029371]
[1742481231804,0.42457503,86391.0,86390.0,0.00029371]
[1742481231960,0.56329503,86391.0,86390.0,0.00029371]
[1742481232569,0.56829503,86391.0,86390.0,0.00029371]
[1742481232969,0.55829503,86391.0,86390.0,0.00029371]
[1742481233170,0.56229503,86391.0,86390.0,0.00029371]
[1742481233385,0.56729503,86391.0,86390.0,0.00029371]
[1742481233795,0.56229503,86391.0,86390.0,0.00029371]
[1742481234200,0.12857503,86391.0,86390.0,0.00029371]
[1742481236007,0.12357503,86391.0,86390.0,0.00029371]
[1742481236204,0.11957503,86391.0,86390.0,0.00029371]
[1742481236507,0.12857503,86391.0,86390.0,0.00029371]
[1742481237571,0.42857503,86391.0,86390.0,0.00029371]
[1742481238117,0.56733503,86391.0,86390.0,0.00029371]
[1742481238320,0.57197803,86391.0,86390.0,0.00029371]
[1742481238471,0.43321803,86391.0,86390.0,0.00029371]
[1742481238673,0.57197803,86391.0,86390.0,0.00029371]
[1742481239234,0.56297803,86391.0,86390.0,0.00029371]
[1742481239736,0.57297803,86391.0,86390.0,0.00029371]
[1742481239974,0.56797803,86391.0,86390.0,0.00029371]
[1742481240194,0.56297803,86391.0,86390.0,0.00029371]
[1742481240509,0.26697803,86391.0,86390.0,0.00029371]
[1742481240905,0.27197803,86391.0,86390.0,0.00029371]
[1742481241271,0.29013996,86391.0,86390.0,0.00029371]
[1742481242268,0.28613996,86391.0,86390.0,0.00029371]
[1742481242780,0.28113996,86391.0,86390.0,0.00029371]
[1742481243752,0.28913996,86391.0,86390.0,0.00029371]
[1742481244358,0.28445696,86391.0,86390.0,0.00029371]
[1742481246041,0.27945696,86391.0,86390.0,0.00029371]
[1742481246246,0.14173696,86391.0,86390.0,0.23180171]
[1742481246446,0.02216193,86391.0,86390.0,0.24337671]
[1742481246880,0.01916193,86391.0,86390.0,0.24337671]
[1742481247080,0.01816193,86391.0,86390.0,0.24337671]
[1742481247312,0.01916193,86391.0,86390.0,0.25791756]
[1742481247895,0.02016193,86391.0,86390.0,0.25791756]
[1742481248105,0.01916193,86391.0,86390.0,0.60451756]
[1742481248484,0.01916193,86391.0,86390.0,0.6151124]
[1742481249268,0.01816193,86391.0,86390.0,0.6151124]
[1742481249706,0.01816193,86391.0,86390.0,0.7538324]
[1742481251536,0.01816193,86391.0,86390.0,0.04689371]
[1742481251710,0.13773696,86391.0,86390.0,0.00029371]
[1742481252089,0.11957503,86391.0,86390.0,0.00029371]
[1742481252308,0.13043555,86391.0,86390.0,0.00029371]
[1742481252935,0.43043555,86391.0,86390.0,0.00029371]
[1742481253180,0.43343555,86391.0,86390.0,0.00029371]
[1742481253580,0.51043555,86391.0,86390.0,0.00029371]
[1742481253773,0.50843555,86391.0,86390.0,0.00029371]
[1742481253952,0.43443555,86391.0,86390.0,0.00029371]
[1742481254321,0.57611555,86391.0,86390.0,0.00029371]
[1742481254451,0.56911555,86391.0,86390.0,0.00029371]
[1742481254898,0.27411555,86391.0,86390.0,0.00029371]
[1742481255098,0.29227806,86391.0,86390.0,0.00029371]
[1742481255731,0.59227806,86391.0,86390.0,0.00029371]
[1742481255909,0.59727806,86391.0,86390.0,0.00029371]
[1742481256412,0.59227806,86391.0,86390.0,0.00029371]
[1742481256727,0.59727806,86391.0,86390.0,0.00029371]
[1742481256930,0.59227806,86391.0,86390.0,0.00029371]
[1742481257433,0.59627806,86391.0,86390.0,0.00029371]
[1742481257868,0.65067806,86391.0,86390.0,0.00029371]
[1742481258022,0.69021891,86391.0,86390.0,0.00029371]
[1742481258206,1.54931991,86391.0,86390.0,0.00029371]
[1742481258402,1.74037891,86391.0,86390.0,0.00029371]
[1742481258629,1.85995394,86391.0,86390.0,0.00029371]
[1742481259013,1.50524394,86391.0,86390.0,0.00029371]
[1742481259210,1.48024394,86391.0,86390.0,0.00029371]
[1742481259490,1.51024394,86391.0,86390.0,0.00029371]
[1742481259664,1.51028394,86391.0,86390.0,0.00029371]
[1742481260007,1.50128394,86391.0,86390.0,0.00029371]
[1742481260296,1.36756394,86391.0,86390.0,1e-08]
[1742481260498,0.005,86378.0,86374.0,0.0001696]
[1742481260820,0.005,86378.0,86344.0,0.0001696]
[1742481260821,0.0822,86368.0,86344.0,0.0001696]
[1742481261019,0.41957503,86347.0,86344.0,0.0001696]
[1742481261153,0.55829503,86347.0,86344.0,0.0001696]
[1742481263998,1.00343859,86347.0,86346.0,0.00019465]
[1742481264198,1.00843859,86347.0,86346.0,0.00019465]
[1742481264601,0.86099144,86347.0,86346.0,0.00019465]
[1742481264808,0.99971144,86347.0,86346.0,0.00019465]
[1742481269115,0.99951144,86347.0,86346.0,0.00019465]
[1742481269696,0.86079144,86347.0,86346.0,0.00019465]
[1742481269923,0.99955144,86347.0,86346.0,0.00019465]
[1742481272406,0.86079144,86347.0,86346.0,0.00019465]
[1742481272647,0.99955144,86347.0,86346.0,0.00019465]
[1742481273452,0.97757903,86347.0,86346.0,0.00019465]
[1742481274037,0.97757903,86347.0,86346.0,0.00036415]
[1742481275943,0.83881903,86347.0,86346.0,0.00036415]
[1742481276272,0.97757903,86347.0,86346.0,0.00036415]
[1742481276479,0.99575087,86347.0,86346.0,0.00036415]
[1742481278167,0.58715087,86347.0,86346.0,0.00036415]
[1742481281465,0.13021903,86347.0,86346.0,0.00036415]
[1742481281836,0.26893903,86347.0,86346.0,0.00036415]
[1742481282812,0.26393903,86347.0,86346.0,0.00036415]
[1742481282993,0.55893903,86347.0,86346.0,0.00036415]
[1742481283217,0.56393903,86347.0,86346.0,0.00036415]
[1742481283362,0.56893903,86347.0,86346.0,0.00036415]
[1742481283774,0.55893903,86347.0,86346.0,0.00036415]
[1742481284156,0.56393903,86347.0,86346.0,0.00036415]
[1742481284334,0.56893903,86347.0,86346.0,0.00036415]
[1742481284488,0.56893903,86347.0,86344.0,0.0001696]
[1742481284672,0.56893903,86347.0,86341.0,0.001]
[1742481284673,0.3,86344.0,86341.0,0.001]
[1742481284883,0.41957503,86342.0,86341.0,0.001]
[1742481285384,0.305,86341.0,86333.0,0.0001696]
[1742481285650,0.41957503,86334.0,86333.0,0.0001696]
[1742481285862,0.25829503,86334.0,86333.0,0.0001696]
[1742481286267,0.26906811,86334.0,86333.0,0.0001696]
[1742481286436,0.28724312,86334.0,86333.0,0.0001696]
[1742481287425,0.29224312,86334.0,86333.0,0.0001696]
[1742481289152,0.29724312,86334.0,86333.0,0.0001696]
[1742481289679,0.84888312,86334.0,86333.0,0.0001696]
[1742481289859,0.3,86333.0,86317.0,0.0023565]
[1742481290056,0.3,86333.0,86313.0,0.0131293]
[1742481290057,0.005,86325.0,86313.0,0.0129597]
[1742481290262,0.41957503,86314.0,86313.0,0.0129597]
[1742481290528,0.41957503,86314.0,86313.0,0.01337578]
[1742481290529,0.96689503,86314.0,86313.0,0.01337578]
[1742481290729,0.97985503,86314.0,86313.0,0.01337578]
[1742481292971,1.06255503,86314.0,86313.0,0.01337578]
[1742481293140,1.05755503,86314.0,86313.0,0.01337578]
[1742481293318,1.16431053,86314.0,86313.0,0.01337578]
[1742481293509,1.06255503,86314.0,86313.0,0.00635742]
[1742481293706,0.005,86312.0,86311.0,0.001]
[1742481293902,0.005,86312.0,86311.0,0.00112449]
[1742481293903,0.84771588,86312.0,86311.0,0.00112449]
[1742481295214,0.84771588,86312.0,86311.0,1e-08]
[1742481295420,0.85271588,86312.0,86311.0,1e-08]
[1742481295618,0.85771588,86312.0,86311.0,1e-08]
[1742481296806,0.85271588,86312.0,86311.0,1e-08]
[1742481297103,0.005,86310.0,86307.0,1e-07]
[1742481297280,0.41957503,86308.0,86307.0,1e-07]
[1742481298491,0.25833503,86308.0,86307.0,1e-07]
[1742481298914,0.26333503,86308.0,86307.0,1e-07]
[1742481300161,0.12457503,86308.0,86307.0,1e-07]
[1742481300375,0.12957503,86308.0,86307.0,1e-07]
[1742481300975,0.12957503,86308.0,86307.0,0.2317301]
[1742481301490,0.12957503,86308.0,86307.0,1e-07]
[1742481301713,0.12457503,86308.0,86307.0,1e-07]
[1742481301910,0.12257503,86308.0,86307.0,1e-07]
[1742481302339,0.12457503,86308.0,86307.0,1e-07]
[1742481302847,0.12257503,86308.0,86307.0,1e-07]
[1742481303201,0.41957503,86308.0,86307.0,1e-07]
[1742481303406,0.41957503,86308.0,86258.0,1.164523]
[1742481303407,0.3,86307.0,86281.0,0.001]
[1742481303612,0.11957503,86285.0,86281.0,0.001]
[1742481303813,0.3,86305.0,86281.0,0.001]
[1742481303814,0.11957503,86283.0,86281.0,0.001]
[1742481304813,0.11957503,86282.0,86281.0,0.001]
[1742481305726,0.83908018,86282.0,86281.0,0.001]
[1742481307725,0.84708018,86282.0,86281.0,0.001]
[1742481308270,2.33597034,86282.0,86281.0,0.001]
[1742481308479,1.00740318,86282.0,86281.0,0.001]
[1742481308679,0.3,86281.0,86259.0,0.0001696]
[1742481308884,0.41957503,86260.0,86259.0,0.00029437]
[1742481309014,0.55833503,86260.0,86259.0,0.00029437]
[1742481309576,0.57652376,86260.0,86259.0,0.00029437]
[1742481311339,0.57852376,86260.0,86259.0,0.00029437]
[1742481311541,0.13976376,86260.0,86259.0,0.24374537]
[1742481311770,0.12457503,86260.0,86259.0,0.24374537]
[1742481311899,0.12457503,86260.0,86259.0,0.08299437]
[1742481312507,0.12157503,86260.0,86259.0,0.08299437]
[1742481313164,0.11957503,86260.0,86259.0,0.08299437]
[1742481313985,0.12057503,86260.0,86259.0,0.08299437]
[1742481314193,0.12057503,86260.0,86259.0,0.31485337]
[1742481314409,0.01090515,86282.0,86259.0,0.31485337]
[1742481314410,0.13876,86278.0,86259.0,0.37494537]
[1742481314605,0.11957503,86277.0,86270.0,0.231828]
[1742481314764,0.11957503,86277.0,86269.0,0.231832]
[1742481315464,0.11957503,86277.0,86270.0,0.24342]
[1742481315687,0.11957503,86277.0,86275.0,0.231816]
[1742481315852,0.11957503,86277.0,86276.0,0.08799]
[1742481316253,0.01818331,86277.0,86276.0,0.13329]
[1742481316453,0.02118331,86277.0,86276.0,0.13329]
[1742481316650,0.01818331,86277.0,86276.0,0.288704]
[1742481316859,0.01818331,86277.0,86276.0,0.0453]
[1742481316860,0.13775834,86277.0,86276.0,0.0453]
[1742481317211,0.13975834,86277.0,86276.0,0.288704]
[1742481317422,0.02218331,86277.0,86276.0,0.288704]
[1742481317835,0.01818331,86277.0,86276.0,0.288704]
[1742481318657,0.01818331,86277.0,86276.0,0.366504]
[1742481318862,0.02018331,86277.0,86276.0,0.38104485]
[1742481319478,0.02018331,86277.0,86276.0,0.366504]
[1742481320048,0.02118331,86277.0,86276.0,0.366504]
[1742481320248,0.01818331,86277.0,86276.0,0.366504]
[1742481320588,0.01818331,86277.0,86276.0,0.38204485]
[1742481320868,0.01818331,86277.0,86276.0,0.38104485]
[1742481321357,0.13876,86308.0,86303.0,0.23174]
[1742481321591,0.13876,86308.0,86301.0,0.357445]
[1742481321592,0.01818038,86305.0,86301.0,0.357445]
[1742481321795,0.01818038,86305.0,86304.0,0.243324]
[1742481322006,0.11957503,86305.0,86304.0,0.243324]
[1742481322769,0.13872,86317.0,86310.0,0.243308]
[1742481322999,0.0826394,86341.0,86310.0,0.243308]
[1742481323000,0.00046387,86311.0,86310.0,0.243308]
[1742481323324,0.00046387,86311.0,86310.0,0.243148]
[1742481323665,0.00046387,86311.0,86310.0,0.239148]
[1742481325164,0.00046387,86311.0,86310.0,0.238468]
[1742481325919,0.01863905,86311.0,86310.0,0.238468]
[1742481326126,0.01863905,86311.0,86309.0,0.231725]
[1742481326127,0.13821408,86311.0,86309.0,0.231723]
[1742481326327,0.11957503,86310.0,86309.0,0.243309]
[1742481326708,0.11957503,86310.0,86302.0,0.231743]
[1742481326910,0.11957503,86310.0,86238.0,1.5]
[1742481326911,0.11957503,86310.0,86293.0,0.03484904]
[1742481327112,0.11957503,86310.0,86299.0,0.23175]
[1742481327352,0.11957503,86310.0,86309.0,0.002]
[1742481327559,0.11957503,86310.0,86309.0,0.013586]
[1742481327760,0.01863905,86311.0,86310.0,0.243308]
[1742481328274,0.01863905,86311.0,86310.0,0.241308]
[1742481328477,0.01863905,86311.0,86310.0,0.363908]
[1742481330459,0.13821408,86311.0,86310.0,0.227722]
[1742481330668,0.13821408,86311.0,86310.0,0.239308]
[1742481330881,0.13821408,86311.0,86309.0,0.231725]
[1742481331082,0.11957503,86310.0,86297.0,0.011587]
[1742481331277,0.11957503,86310.0,86308.0,0.243313]
[1742481331561,0.11957503,86310.0,86307.0,0.231727]
[1742481331773,0.11957503,86310.0,86309.0,0.011586]
[1742481331975,0.00046387,86311.0,86310.0,0.243308]
[1742481332391,0.00046387,86311.0,86310.0,0.63424885]
[1742481332591,0.00046387,86311.0,86310.0,0.68084885]
[1742481332946,0.00046387,86311.0,86310.0,0.69153169]
[1742481333189,8.7e-07,86311.0,86310.0,0.70017298]
[1742481333369,8.7e-07,86311.0,86310.0,2.62007298]
[1742481333937,0.0003394,86341.0,86340.0,0.243224]
[1742481334141,0.12033018,86341.0,86340.0,0.243224]
[1742481334367,0.13850157,86341.0,86340.0,0.243224]
[1742481334521,0.142493,86341.0,86340.0,0.241224]
[1742481334747,0.13850157,86341.0,86340.0,0.241224]
[1742481336194,0.13850157,86341.0,86340.0,0.240224]
[1742481336482,0.01892654,86341.0,86340.0,0.289224]
[1742481338036,0.01892654,86341.0,86340.0,0.290224]
[1742481338710,0.01892654,86341.0,86340.0,0.291224]
[1742481339134,0.01892654,86341.0,86340.0,0.290224]
[1742481339575,0.01892654,86341.0,86340.0,0.292224]
[1742481339933,0.01892654,86341.0,86340.0,0.291224]
[1742481340329,0.01892654,86341.0,86340.0,0.598224]
[1742481340540,0.00075515,86341.0,86340.0,2.177924]
[1742481340749,0.0003394,86368.0,86367.0,0.011578]
[1742481340947,0.00046412,86368.0,86367.0,0.1525332]
[1742481341195,0.00046412,86368.0,86367.0,0.150218]
[1742481341411,0.005,86361.0,86340.0,0.002]
[1742481341615,0.42057503,86341.0,86340.0,0.005]
[1742481341815,0.60593503,86341.0,86340.0,0.005]
[1742481342202,0.30861294,86341.0,86340.0,0.005]
[1742481342555,0.16985294,86341.0,86340.0,0.003]
[1742481342756,0.12325294,86341.0,86340.0,0.003]
[1742481343106,0.12337759,86341.0,86340.0,0.009]
[1742481343256,0.12237759,86341.0,86338.0,0.231646]
[1742481343452,0.11969968,86341.0,86338.0,0.231646]
[1742481343669,0.00267791,86340.0,86338.0,0.231646]
[1742481343862,0.12269968,86341.0,86338.0,0.231646]
[1742481343863,0.11957503,86339.0,86338.0,0.231646]
[1742481344062,0.11957503,86339.0,86337.0,0.243229]
[1742481344261,0.11957503,86339.0,86337.0,0.231649]
[1742481344749,0.13774562,86339.0,86337.0,0.231649]
[1742481345128,0.13774562,86339.0,86337.0,0.243231]
[1742481345430,0.13774562,86339.0,86338.0,0.011582]
[1742481345431,0.01817059,86339.0,86338.0,0.011582]
[1742481346698,0.01850999,86339.0,86338.0,0.01389813]
[1742481347034,0.13908502,86339.0,86338.0,0.013582]
[1742481347549,0.01850999,86339.0,86338.0,0.013582]
[1742481347739,0.01850999,86339.0,86338.0,0.01589809]
[1742481347881,0.01850999,86339.0,86338.0,0.01789809]
[1742481348081,0.01850999,86339.0,86338.0,0.31789809]
[1742481348281,0.01850999,86339.0,86338.0,0.315582]
[1742481349145,0.01850999,86339.0,86338.0,0.365282]
[1742481349346,0.01850999,86339.0,86338.0,0.37982285]
[1742481349548,6.4e-07,86341.0,86340.0,0.311582]
[1742481349752,6.4e-07,86341.0,86340.0,0.393182]
[1742481350650,6.4e-07,86341.0,86340.0,1.893182]
[1742481351053,6.4e-07,86341.0,86340.0,1.899182]
[1742481351660,6.4e-07,86341.0,86340.0,2.48319788]
[1742481351856,0.001,86389.0,86367.0,0.243147]
[1742481352175,0.00046403,86368.0,86367.0,0.243147]
[1742481352439,0.00046403,86368.0,86367.0,0.26626469]
[1742481352625,0.00046403,86368.0,86367.0,0.25172384]
[1742481352754,0.00046403,86368.0,86367.0,2.05172384]
[1742481352958,0.00046403,86368.0,86367.0,2.06626469]
[1742481352959,3e-08,86368.0,86367.0,2.06626469]
[1742481353569,3e-08,86368.0,86367.0,2.07326469]
[1742481353794,3e-08,86368.0,86367.0,2.63073972]
[1742481353998,3e-08,86368.0,86367.0,2.63573972]
[1742481354428,3e-08,86368.0,86367.0,2.63073972]
[1742481354802,3e-08,86368.0,86367.0,2.63673972]
[1742481355024,3e-08,86368.0,86367.0,2.48716469]
[1742481355222,3e-08,86368.0,86367.0,1.11976469]
[1742481355617,3e-08,86368.0,86367.0,1.12576469]
[1742481355929,3e-08,86368.0,86367.0,1.13176469]
[1742481356539,3e-08,86368.0,86367.0,1.12576469]
[1742481357558,3e-08,86368.0,86367.0,1.13176469]
[1742481357748,3e-08,86368.0,86367.0,1.12576469]
[1742481357946,0.00033943,86368.0,86367.0,0.69632384]
[1742481358150,0.00033943,86368.0,86367.0,0.70232384]
[1742481358682,0.00033943,86368.0,86367.0,0.69632384]
[1742481359272,0.00033943,86368.0,86367.0,0.71686469]
[1742481359475,4.3e-07,86368.0,86367.0,0.71086469]
[1742481359680,4.3e-07,86368.0,86367.0,0.71586469]
[1742481359973,4.3e-07,86368.0,86367.0,1.06383972]
[1742481360179,4.3e-07,86368.0,86367.0,0.94163972]
[1742481360385,4.3e-07,86368.0,86367.0,0.93563972]
[1742481360584,4.3e-07,86368.0,86367.0,2.43063972]
[1742481360813,4.3e-07,86368.0,86367.0,2.41163972]
[1742481360977,4.3e-07,86368.0,86367.0,2.43663972]
[1742481361173,4.3e-07,86368.0,86367.0,0.64246469]
[1742481361402,4.3e-07,86368.0,86367.0,0.69028384]
[1742481361612,4.3e-07,86368.0,86367.0,0.69628384]
[1742481362012,4.3e-07,86368.0,86367.0,0.70228384]
[1742481362216,4.3e-07,86368.0,86367.0,0.69628384]
[1742481362624,4.3e-07,86368.0,86367.0,0.70128384]
[1742481362817,4.3e-07,86368.0,86367.0,0.56272384]
[1742481363017,4.3e-07,86368.0,86367.0,0.022578]
[1742481363018,0.11957546,86368.0,86367.0,0.022578]
[1742481363220,0.12206959,86368.0,86367.0,0.254147]
[1742481363565,0.11957546,86368.0,86367.0,0.254147]
[1742481363936,0.11957546,86368.0,86367.0,0.248147]
[1742481364137,0.13773897,86368.0,86367.0,0.248147]
[1742481364918,0.13773897,86368.0,86367.0,0.243147]
[1742481365352,0.13773897,86368.0,86367.0,0.244147]
[1742481365724,0.13773897,86368.0,86367.0,0.243147]
[1742481365922,0.13773897,86368.0,86364.0,0.231577]
[1742481366119,0.11957503,86367.0,86366.0,0.231572]
[1742481366406,0.11957503,86367.0,86366.0,0.24315]
[1742481366570,0.1220552,86367.0,86366.0,0.24315]
[1742481366776,0.11957503,86367.0,86366.0,0.24315]
[1742481369160,0.11957503,86367.0,86365.0,0.231574]
[1742481369363,0.11957503,86367.0,86364.0,0.231577]
[1742481369535,0.11957503,86367.0,86358.0,0.231591]
[1742481369742,0.04744964,86366.0,86347.0,0.011581]
[1742481369977,0.11957503,86362.0,86346.0,0.011581]
[1742481370191,0.11957503,86362.0,86353.0,0.231606]
[1742481370396,0.11957503,86361.0,86343.0,0.011581]
[1742481370603,0.11957503,86360.0,86345.0,0.011581]
[1742481370809,0.11957503,86360.0,86351.0,0.231612]
[1742481371013,0.11957503,86355.0,86337.0,0.0117517]
[1742481371215,0.11957503,86348.0,86341.0,0.231639]
[1742481371425,0.21906,86354.0,86337.0,0.0001697]
[1742481371426,0.13856,86347.0,86337.0,0.0001697]
[1742481371659,0.11957503,86338.0,86337.0,0.0001697]
[1742481372275,0.12192467,86338.0,86337.0,0.0001697]
[1742481372475,0.50142467,86338.0,86337.0,0.0001697]
[1742481372679,0.51240579,86338.0,86337.0,0.0001697]
[1742481373118,0.51240579,86338.0,86337.0,0.00029433]
[1742481373873,0.51440579,86338.0,86337.0,0.00029433]
[1742481374075,0.51240579,86338.0,86337.0,0.00029433]
[1742481374482,0.51640579,86338.0,86337.0,0.00029433]
[1742481375245,0.52894664,86338.0,86337.0,0.00029433]
[1742481375446,0.53394664,86338.0,86337.0,0.00029433]
[1742481376074,0.94254664,86338.0,86337.0,0.00029433]
[1742481376301,0.93754664,86338.0,86337.0,0.00029433]
[1742481376715,0.94254664,86338.0,86337.0,0.00029433]
[1742481376887,0.94054664,86338.0,86337.0,0.00029433]
[1742481377103,0.93554664,86338.0,86337.0,0.00029433]
[1742481377312,1.09012167,86338.0,86337.0,0.00029433]
[1742481377506,0.005,86328.0,86310.0,0.0001697]
[1742481377713,0.11957503,86311.0,86310.0,0.00058545]
[1742481377921,0.25817503,86311.0,86310.0,0.00058545]
[1742481379205,0.26045211,86311.0,86310.0,0.00058545]
[1742481379405,0.12185211,86311.0,86310.0,0.00058545]
[1742481379607,0.26049211,86311.0,86310.0,0.01317145]
[1742481379807,0.12185211,86311.0,86310.0,0.01317145]
[1742481380016,0.11957503,86311.0,86310.0,0.01317145]
[1742481380669,0.11957503,86311.0,86310.0,0.01417145]
[1742481381671,0.13864,86321.0,86320.0,0.011584]
[1742481381876,0.13864,86330.0,86324.0,0.231685]
[1742481382045,0.11957503,86329.0,86324.0,0.231685]
[1742481382250,0.11957503,86329.0,86322.0,0.243273]
[1742481382424,0.11957503,86329.0,86324.0,0.231684]
[1742481383251,0.11957503,86329.0,86328.0,0.011583]
[1742481383463,0.12057503,86329.0,86326.0,0.231676]
[1742481383664,0.00227708,86328.0,86326.0,0.231676]
[1742481383930,0.11957503,86327.0,86326.0,0.243259]
[1742481384540,0.01132052,86338.0,86336.0,0.231652]
[1742481384738,0.11957503,86337.0,86336.0,0.231652]
[1742481385183,0.12185211,86337.0,86336.0,0.231652]
[1742481385389,0.12185211,86337.0,86336.0,0.243234]
[1742481385584,0.01132052,86338.0,86337.0,0.243232]
[1742481385585,0.0003394,86338.0,86337.0,0.243232]
[1742481385783,0.0003394,86338.0,86337.0,0.242232]
[1742481386155,0.0003394,86338.0,86337.0,0.288832]
[1742481386350,0.0003394,86338.0,86337.0,0.287832]
[1742481387019,0.0003394,86338.0,86337.0,0.30237285]
[1742481387221,0.0003394,86338.0,86337.0,0.30637285]
[1742481387557,4e-07,86338.0,86337.0,0.60137285]
[1742481387733,4e-07,86338.0,86337.0,0.62499471]
[1742481388290,4e-07,86338.0,86337.0,0.62699471]
[1742481388492,4.3e-07,86368.0,86367.0,0.243147]
[1742481388716,0.12202553,86368.0,86367.0,0.243147]
[1742481388911,0.00012499,86368.0,86367.0,0.243147]
[1742481389111,0.0024505,86368.0,86367.0,0.243147]
[1742481389313,0.00012499,86368.0,86367.0,0.243147]
[1742481389515,0.00012499,86368.0,86367.0,0.242147]
[1742481389717,0.00012499,86368.0,86367.0,0.231569]
[1742481389922,0.11970002,86368.0,86367.0,0.231569]
[1742481390337,0.11970002,86368.0,86367.0,0.001]
[1742481390548,0.11970002,86368.0,86366.0,0.23157]
[1742481390747,0.11957503,86367.0,86365.0,0.231573]
[1742481390947,0.11957503,86367.0,86362.0,0.231582]
[1742481390948,0.11957503,86367.0,86364.0,0.231577]
[1742481391411,0.11957503,86367.0,86363.0,0.23158]
[1742481391566,0.11957503,86367.0,86364.0,0.231576]
[1742481392170,0.11957503,86367.0,86365.0,0.232573]
[1742481392572,0.11957503,86367.0,86365.0,0.244151]
[1742481392777,0.11957503,86367.0,86365.0,0.243151]
[1742481392991,0.11957503,86367.0,86359.0,0.231591]
[1742481393355,0.11957503,86367.0,86366.0,0.011578]
[1742481394972,0.11957503,86367.0,86365.0,0.243151]
[1742481394973,0.11957503,86367.0,86365.0,0.231573]
[1742481395744,0.11957503,86367.0,86366.0,0.001]
[1742481396367,0.11957503,86367.0,86352.0,0.01158]
[1742481396368,0.11957503,86367.0,86358.0,0.011579]
[1742481396566,0.11957503,86364.0,86362.0,0.231583]
[1742481396802,0.11957503,86364.0,86363.0,0.243159]
[1742481397010,0.12181074,86364.0,86363.0,0.243159]
[1742481397439,0.11957503,86364.0,86363.0,0.23158]
[1742481398467,0.11957503,86364.0,86363.0,0.243159]
[1742481399185,0.00012499,86368.0,86367.0,0.243147]
[1742481400576,0.00012499,86368.0,86367.0,0.25768785]
[1742481400776,9.9e-07,86368.0,86367.0,0.97258785]
[1742481400977,9.9e-07,86368.0,86367.0,0.97558785]
[1742481401157,9.9e-07,86368.0,86367.0,1.05168785]
[1742481401734,9.9e-07,86368.0,86367.0,1.17626288]
[1742481402083,9.9e-07,86368.0,86367.0,1.18226288]
[1742481402281,9.9e-07,86368.0,86367.0,1.17926288]
[1742481402484,9.9e-07,86368.0,86367.0,1.18426288]
[1742481402711,0.0003392,86398.0,86388.0,0.243088]
[1742481402919,0.0003392,86398.0,86388.0,0.381648]
[1742481403331,0.0003392,86398.0,86388.0,0.380648]
[1742481403736,1e-06,86389.0,86388.0,0.69518885]
[1742481403912,2e-07,86405.0,86404.0,0.243043]
[1742481404110,2e-07,86405.0,86404.0,0.381603]
[1742481404387,0.00012483,86405.0,86404.0,0.381603]
[1742481404507,0.00012483,86405.0,86404.0,1.881603]
[1742481405116,0.00012483,86405.0,86404.0,1.89282675]
[1742481405736,0.00012483,86405.0,86404.0,1.9073676]
[1742481405943,8.3e-07,86405.0,86404.0,2.2073676]
[1742481406146,8.3e-07,86405.0,86404.0,2.2153676]
[1742481406341,8.3e-07,86405.0,86404.0,2.6302676]
[1742481406566,8.3e-07,86405.0,86404.0,2.6252676]
[1742481406777,8.3e-07,86405.0,86404.0,2.64851448]
[1742481407011,8.3e-07,86405.0,86404.0,2.65351448]
[1742481407303,8.3e-07,86405.0,86404.0,2.64851448]
[1742481407511,8.3e-07,86405.0,86404.0,2.64551448]
[1742481407731,8.3e-07,86405.0,86404.0,2.65151448]
[1742481407940,8.3e-07,86405.0,86404.0,2.65551448]
[1742481408344,8.3e-07,86405.0,86404.0,2.65151448]
[1742481408544,8.3e-07,86405.0,86404.0,2.51295448]
[1742481408747,8.3e-07,86405.0,86404.0,2.51895448]
[1742481408947,8.3e-07,86405.0,86404.0,2.65747448]
[1742481409516,8.3e-07,86405.0,86404.0,2.65147448]
[1742481409916,8.3e-07,86405.0,86404.0,2.65747448]
[1742481410713,8.3e-07,86405.0,86404.0,1.15747448]
[1742481411895,0.001,86449.0,86444.0,0.005]
[1742481412244,0.001,86449.0,86448.0,0.242919]
[1742481412447,0.00141552,86449.0,86448.0,0.242919]
[1742481412648,0.00141552,86449.0,86448.0,1.742919]
[1742481413771,0.00241552,86449.0,86448.0,1.742919]
[1742481413972,0.00141552,86449.0,86448.0,1.742919]
[1742481414218,0.00241552,86449.0,86448.0,1.742919]
[1742481414416,0.00241552,86449.0,86448.0,1.747919]
[1742481414721,0.00141552,86449.0,86448.0,1.742919]
[1742481415093,0.00141552,86449.0,86448.0,1.77088076]
[1742481415591,5.2e-07,86449.0,86448.0,1.76588076]
[1742481415792,7.2e-07,86452.0,86451.0,0.011567]
[1742481416003,2.7e-07,86454.0,86453.0,0.011566]
[1742481416201,2.7e-07,86454.0,86453.0,0.01387891]
[1742481416504,2.7e-07,86454.0,86453.0,0.150046]
[1742481416713,2.7e-07,86454.0,86453.0,0.15235876]
[1742481417129,2.7e-07,86454.0,86453.0,0.15535876]
[1742481417429,2.7e-07,86454.0,86453.0,0.153046]
[1742481417858,4.7e-07,86455.0,86454.0,0.242902]
[1742481417974,4.7e-07,86455.0,86454.0,0.25744285]
[1742481418338,4.7e-07,86455.0,86454.0,0.55744285]
[1742481418759,4.7e-07,86455.0,86454.0,0.69588285]
[1742481420107,4.7e-07,86455.0,86454.0,0.70088285]
[1742481420380,4.7e-07,86455.0,86454.0,0.69588285]
[1742481420609,4.7e-07,86455.0,86454.0,2.19588285]
[1742481420780,4.7e-07,86455.0,86454.0,2.20188285]
[1742481421005,4.7e-07,86455.0,86454.0,2.33045788]
[1742481421525,4.7e-07,86455.0,86454.0,2.40915788]
[1742481421942,4.7e-07,86455.0,86454.0,2.29058285]
[1742481422145,4.7e-07,86455.0,86454.0,2.20788285]
[1742481422550,4.7e-07,86455.0,86454.0,2.61678285]
[1742481422745,4.7e-07,86455.0,86454.0,2.62278285]
[1742481423227,4.7e-07,86455.0,86454.0,2.61678285]
[1742481423561,4.7e-07,86455.0,86454.0,0.969802]
[1742481423955,4.7e-07,86455.0,86454.0,0.663802]
[1742481424538,4.7e-07,86455.0,86454.0,0.657802]
[1742481425585,4.7e-07,86455.0,86454.0,0.663802]
[1742481426220,4.7e-07,86455.0,86454.0,0.97834285]
[1742481426427,4.7e-07,86455.0,86454.0,0.98434285]
[1742481426619,4.7e-07,86455.0,86454.0,0.97834285]
[1742481427039,4.7e-07,86455.0,86454.0,0.97734285]
[1742481427742,4.7e-07,86455.0,86454.0,0.962802]
[1742481427972,4.7e-07,86455.0,86454.0,0.657802]
[1742481428383,4.7e-07,86455.0,86454.0,0.668802]
[1742481429580,4.7e-07,86455.0,86454.0,0.662802]
[1742481429797,4.7e-07,86455.0,86454.0,0.657802]
[1742481429968,0.1195755,86455.0,86454.0,0.242902]
[1742481430174,0.1195755,86455.0,86454.0,0.248902]
[1742481430381,0.1195755,86455.0,86454.0,0.242902]
[1742481430546,0.1195755,86455.0,86454.0,0.231336]